[Event "Titled Tuesday Blitz May 16 Early 2023"]
[White "Sebag, Marie"]
[Black "Le, Tuan Minh"]
[WhiteFideId "617822"]
[BlackFideId "12401153"]
[WhiteElo "2431"]
[BlackElo "2566"]
[Result "0-1"]
[Round "02"]
[TimeControl "180+2"]
[Date "2023.05.16"]
[WhiteClock "0:00:21"]
[BlackClock "0:01:27"]

1. c4 {[%clk 0:03:00]}  c6 {[%clk 0:03:00]} 2. d4 {[%clk 0:02:55]}  d5 {[%clk 0:02:59]} 3. cxd5 {[%clk 0:02:55]}  cxd5 {[%clk 0:03:00]} 4. Nc3 {[%clk 0:02:55]}  Nf6 {[%clk 0:03:01]} 5. Bf4 {[%clk 0:02:55]}  Nc6 {[%clk 0:03:01]} 6. e3 {[%clk 0:02:54]}  a6 {[%clk 0:03:01]} 7. Nf3 {[%clk 0:02:53]}  Bg4 {[%clk 0:03:01]} 8. h3 {[%clk 0:02:52]}  Bxf3 {[%clk 0:03:02]} 9. Qxf3 {[%clk 0:02:52]}  e6 {[%clk 0:03:03]} 10. Bd3 {[%clk 0:02:51]}  Bd6 {[%clk 0:03:03]} 11. Bxd6 {[%clk 0:02:46]}  Qxd6 {[%clk 0:03:04]} 12. O-O {[%clk 0:02:46]}  O-O {[%clk 0:03:04]} 13. Rac1 {[%clk 0:02:45]}  Rac8 {[%clk 0:03:05]} 14. a3 {[%clk 0:02:42]}  Rc7 {[%clk 0:03:05]} 15. Rc2 {[%clk 0:02:41]}  Rfc8 {[%clk 0:03:05]} 16. Rfc1 {[%clk 0:02:40]}  Na5 {[%clk 0:02:41]} 17. Ne2 {[%clk 0:02:20]}  Rxc2 {[%clk 0:02:36]} 18. Rxc2 {[%clk 0:02:20]}  Rxc2 {[%clk 0:02:36]} 19. Bxc2 {[%clk 0:02:20]}  Nc4 {[%clk 0:02:37]} 20. e4 {[%clk 0:02:06]}  dxe4 {[%clk 0:02:32]} 21. Qc3 {[%clk 0:02:02]}  b5 {[%clk 0:02:28]} 22. Ng3 {[%clk 0:01:56]}  e3 {[%clk 0:02:27]} 23. Bb3 {[%clk 0:01:38]}  exf2+ {[%clk 0:02:26]} 24. Kxf2 {[%clk 0:01:38]}  Qf4+ {[%clk 0:02:20]} 25. Kg1 {[%clk 0:01:37]}  Nd5 {[%clk 0:02:19]} 26. Qd3 {[%clk 0:01:32]}  Nxb2 {[%clk 0:02:18]} 27. Qc2 {[%clk 0:01:27]}  Qxd4+ {[%clk 0:02:17]} 28. Kh2 {[%clk 0:01:25]}  Nc4 {[%clk 0:02:18]} 29. a4 {[%clk 0:01:20]}  g6 {[%clk 0:02:18]} 30. axb5 {[%clk 0:01:19]}  axb5 {[%clk 0:02:19]} 31. Qa2 {[%clk 0:01:18]}  h5 {[%clk 0:02:19]} 32. Ne2 {[%clk 0:01:04]}  Qe5+ {[%clk 0:02:17]} 33. Kh1 {[%clk 0:01:02]}  Nce3 {[%clk 0:02:16]} 34. Ng1 {[%clk 0:01:00]}  Nc3 {[%clk 0:02:12]} 35. Qa8+ {[%clk 0:00:57]}  Kg7 {[%clk 0:02:12]} 36. Qf3 {[%clk 0:00:56]}  b4 {[%clk 0:02:05]} 37. Qc6 {[%clk 0:00:54]}  Ne4 {[%clk 0:01:55]} 38. Ne2 {[%clk 0:00:45]}  Nf5 {[%clk 0:01:43]} 39. Qc2 {[%clk 0:00:39]}  h4 {[%clk 0:01:38]} 40. Kg1 {[%clk 0:00:32]}  Neg3 {[%clk 0:01:36]} 41. Nxg3 {[%clk 0:00:32]}  Qe3+ {[%clk 0:01:30]} 42. Kh1 {[%clk 0:00:29]}  Qe1+ {[%clk 0:01:27]} 43. Nf1 {[%clk 0:00:27]}  Ng3+ {[%clk 0:01:27]} 44. Kh2 {[%clk 0:00:21]}  Nxf1+ {[%clk 0:01:27]} 0-1


[Site "https://www.chess.com"]

[Event "Titled Tuesday Blitz May 16 Early 2023"]
[White "Odegov, Artem"]
[Black "Maghsoodloo, Parham"]
[WhiteFideId "34183644"]
[BlackFideId "12539929"]
[WhiteElo "2300"]
[BlackElo "2655"]
[Result "0-1"]
[Round "02"]
[TimeControl "180+2"]
[Date "2023.05.16"]
[WhiteClock "0:00:59"]
[BlackClock "0:02:35"]

1. d4 {[%clk 0:03:00]}  Nf6 {[%clk 0:02:59]} 2. c4 {[%clk 0:03:00]}  e6 {[%clk 0:02:59]} 3. Nf3 {[%clk 0:03:00]}  Bb4+ {[%clk 0:02:58]} 4. Nbd2 {[%clk 0:03:00]}  d5 {[%clk 0:02:55]} 5. Qa4+ {[%clk 0:02:53]}  Nc6 {[%clk 0:02:55]} 6. a3 {[%clk 0:02:51]}  Bxd2+ {[%clk 0:02:54]} 7. Bxd2 {[%clk 0:02:51]}  O-O {[%clk 0:02:54]} 8. e3 {[%clk 0:02:50]}  Ne4 {[%clk 0:02:51]} 9. Bd3 {[%clk 0:02:46]}  Nxd2 {[%clk 0:02:51]} 10. Nxd2 {[%clk 0:02:47]}  dxc4 {[%clk 0:02:40]} 11. Qxc4 {[%clk 0:02:30]}  e5 {[%clk 0:02:40]} 12. d5 {[%clk 0:02:12]}  Ne7 {[%clk 0:02:40]} 13. e4 {[%clk 0:02:06]}  c6 {[%clk 0:02:39]} 14. Rd1 {[%clk 0:01:27]}  cxd5 {[%clk 0:02:38]} 15. exd5 {[%clk 0:01:24]}  Qxd5 {[%clk 0:02:38]} 16. Qxd5 {[%clk 0:01:22]}  Nxd5 {[%clk 0:02:39]} 17. Nf3 {[%clk 0:01:21]}  Nf4 {[%clk 0:02:38]} 18. Be4 {[%clk 0:01:11]}  Nxg2+ {[%clk 0:02:36]} 19. Kf1 {[%clk 0:01:11]}  Nf4 {[%clk 0:02:35]} 20. Nxe5 {[%clk 0:00:59]}  Bh3+ {[%clk 0:02:35]} 0-1


[Site "https://www.chess.com"]

[Event "Titled Tuesday Blitz May 16 Early 2023"]
[White "Kozak, Adam"]
[Black "Orlov, Georgi"]
[WhiteFideId "753246"]
[BlackFideId "2011271"]
[WhiteElo "2469"]
[BlackElo "2606"]
[Result "1-0"]
[Round "02"]
[TimeControl "180+2"]
[Date "2023.05.16"]
[WhiteClock "0:00:05"]
[BlackClock "0:00:00"]

1. e4 {[%clk 0:02:59]}  d6 {[%clk 0:02:55]} 2. d4 {[%clk 0:02:58]}  Nf6 {[%clk 0:02:55]} 3. Nc3 {[%clk 0:02:57]}  c6 {[%clk 0:02:55]} 4. Nge2 {[%clk 0:02:57]}  e5 {[%clk 0:02:52]} 5. h3 {[%clk 0:02:56]}  Qb6 {[%clk 0:02:44]} 6. g4 {[%clk 0:02:55]}  g6 {[%clk 0:02:38]} 7. Bg2 {[%clk 0:02:54]}  Bg7 {[%clk 0:02:38]} 8. dxe5 {[%clk 0:02:34]}  dxe5 {[%clk 0:02:37]} 9. Qd6 {[%clk 0:02:34]}  Nfd7 {[%clk 0:02:28]} 10. Be3 {[%clk 0:02:33]}  Qd8 {[%clk 0:02:13]} 11. O-O-O {[%clk 0:02:29]}  Qe7 {[%clk 0:02:10]} 12. Qd2 {[%clk 0:02:09]}  O-O {[%clk 0:02:09]} 13. h4 {[%clk 0:02:09]}  Nb6 {[%clk 0:02:08]} 14. b3 {[%clk 0:02:02]}  Bxg4 {[%clk 0:02:05]} 15. h5 {[%clk 0:01:59]}  Na6 {[%clk 0:01:58]} 16. hxg6 {[%clk 0:01:50]}  fxg6 {[%clk 0:01:51]} 17. Qe1 {[%clk 0:01:27]}  Qb4 {[%clk 0:01:34]} 18. f3 {[%clk 0:00:56]}  Bxf3 {[%clk 0:01:20]} 19. Qh4 {[%clk 0:00:36]}  h5 {[%clk 0:01:19]} 20. Qg5 {[%clk 0:00:28]}  Bxg2 {[%clk 0:00:49]} 21. Qxg2 {[%clk 0:00:24]}  Rf6 {[%clk 0:00:35]} 22. Bd2 {[%clk 0:00:13]}  Raf8 {[%clk 0:00:28]} 23. Kb1 {[%clk 0:00:09]}  Nc4 {[%clk 0:00:23]} 24. Bc1 {[%clk 0:00:09]}  Na3+ {[%clk 0:00:20]} 25. Kb2 {[%clk 0:00:09]}  Nc5 {[%clk 0:00:18]} 26. Qg1 {[%clk 0:00:03]}  Nc4+ {[%clk 0:00:17]} 27. Ka1 {[%clk 0:00:03]}  Na3 {[%clk 0:00:15]} 28. Kb2 {[%clk 0:00:03]}  Nb5 {[%clk 0:00:14]} 29. Nxb5 {[%clk 0:00:03]}  Qxb5 {[%clk 0:00:14]} 30. Nc3 {[%clk 0:00:03]}  Qb6 {[%clk 0:00:15]} 31. Be3 {[%clk 0:00:02]}  Rf2 {[%clk 0:00:09]} 32. Bxf2 {[%clk 0:00:02]}  Rxf2 {[%clk 0:00:09]} 33. Kb1 {[%clk 0:00:01]}  Rf6 {[%clk 0:00:08]} 34. Qg2 {[%clk 0:00:01]}  Qb4 {[%clk 0:00:08]} 35. Qd2 {[%clk 0:00:01]}  Kh7 {[%clk 0:00:07]} 36. Qe3 {[%clk 0:00:01]}  a5 {[%clk 0:00:07]} 37. Rhg1 {[%clk 0:00:02]}  a4 {[%clk 0:00:07]} 38. Kb2 {[%clk 0:00:03]}  axb3 {[%clk 0:00:07]} 39. axb3 {[%clk 0:00:03]}  Qb6 {[%clk 0:00:07]} 40. Kb1 {[%clk 0:00:03]}  Qa5 {[%clk 0:00:06]} 41. Rg3 {[%clk 0:00:03]}  Qb4 {[%clk 0:00:06]} 42. Na2 {[%clk 0:00:03]}  Qb5 {[%clk 0:00:05]} 43. Nc3 {[%clk 0:00:04]}  Qb4 {[%clk 0:00:05]} 44. Rdg1 {[%clk 0:00:04]}  Bh6 {[%clk 0:00:04]} 45. Qe2 {[%clk 0:00:04]}  Bf4 {[%clk 0:00:04]} 46. Rh3 {[%clk 0:00:03]}  Kh6 {[%clk 0:00:04]} 47. Rgh1 {[%clk 0:00:03]}  Qd4 {[%clk 0:00:02]} 48. Rd1 {[%clk 0:00:03]}  Qb4 {[%clk 0:00:02]} 49. Rg1 {[%clk 0:00:04]}  Nxb3 {[%clk 0:00:02]} 50. cxb3 {[%clk 0:00:04]}  Qxb3+ {[%clk 0:00:02]} 51. Qb2 {[%clk 0:00:04]}  Qc4 {[%clk 0:00:02]} 52. Rd1 {[%clk 0:00:05]}  b5 {[%clk 0:00:02]} 53. Rhd3 {[%clk 0:00:05]}  b4 {[%clk 0:00:02]} 54. Ne2 {[%clk 0:00:05]}  Qxe4 {[%clk 0:00:02]} 55. Nxf4 {[%clk 0:00:05]}  exf4 {[%clk 0:00:00]} 56. Qc2 {[%clk 0:00:05]} 1-0


[Site "https://www.chess.com"]

[Event "Titled Tuesday Blitz May 16 Early 2023"]
[White "Bartel, Michal"]
[Black "Pap, Gyula"]
[WhiteFideId "1119257"]
[BlackFideId "725323"]
[WhiteElo "2282"]
[BlackElo "2519"]
[Result "0-1"]
[Round "02"]
[TimeControl "180+2"]
[Date "2023.05.16"]
[WhiteClock "0:00:58"]
[BlackClock "0:00:52"]

1. e4 {[%clk 0:03:00]}  e5 {[%clk 0:03:00]} 2. Nc3 {[%clk 0:02:59]}  Nf6 {[%clk 0:03:00]} 3. g3 {[%clk 0:02:59]}  Bc5 {[%clk 0:02:59]} 4. Bg2 {[%clk 0:02:59]}  O-O {[%clk 0:02:59]} 5. Nge2 {[%clk 0:02:59]}  c6 {[%clk 0:03:00]} 6. O-O {[%clk 0:02:58]}  d5 {[%clk 0:03:00]} 7. exd5 {[%clk 0:02:55]}  cxd5 {[%clk 0:03:01]} 8. d4 {[%clk 0:02:56]}  exd4 {[%clk 0:03:02]} 9. Nxd4 {[%clk 0:02:56]}  Bg4 {[%clk 0:03:02]} 10. Nf3 {[%clk 0:02:50]}  Nc6 {[%clk 0:02:50]} 11. h3 {[%clk 0:02:49]}  Bh5 {[%clk 0:02:49]} 12. Bg5 {[%clk 0:02:38]}  d4 {[%clk 0:02:46]} 13. Ne4 {[%clk 0:02:33]}  Be7 {[%clk 0:02:46]} 14. Nxf6+ {[%clk 0:02:31]}  Bxf6 {[%clk 0:02:47]} 15. Bxf6 {[%clk 0:02:30]}  Qxf6 {[%clk 0:02:47]} 16. g4 {[%clk 0:02:29]}  Bg6 {[%clk 0:02:48]} 17. Qd2 {[%clk 0:02:15]}  Rac8 {[%clk 0:02:43]} 18. a3 {[%clk 0:02:12]}  Rfd8 {[%clk 0:02:43]} 19. Rac1 {[%clk 0:02:09]}  b6 {[%clk 0:02:39]} 20. Rfd1 {[%clk 0:02:04]}  h6 {[%clk 0:02:30]} 21. Qe2 {[%clk 0:01:57]}  Qf4 {[%clk 0:02:21]} 22. Qd2 {[%clk 0:01:56]}  Qf6 {[%clk 0:02:20]} 23. Qe2 {[%clk 0:01:56]}  Re8 {[%clk 0:02:21]} 24. Qd2 {[%clk 0:01:54]}  Rcd8 {[%clk 0:02:15]} 25. Re1 {[%clk 0:01:53]}  Be4 {[%clk 0:02:15]} 26. Nh2 {[%clk 0:01:35]}  Bxg2 {[%clk 0:02:15]} 27. Kxg2 {[%clk 0:01:36]}  Ne5 {[%clk 0:02:15]} 28. Re4 {[%clk 0:01:20]}  Nc4 {[%clk 0:01:56]} 29. Rxe8+ {[%clk 0:01:14]}  Rxe8 {[%clk 0:01:57]} 30. Qd3 {[%clk 0:01:08]}  Nxb2 {[%clk 0:01:52]} 31. Qb5 {[%clk 0:01:08]}  Re5 {[%clk 0:01:12]} 32. Qxb2 {[%clk 0:01:07]}  Re2 {[%clk 0:01:13]} 33. Nf3 {[%clk 0:01:05]}  Qf4 {[%clk 0:01:03]} 34. Rd1 {[%clk 0:01:03]}  Qe3 {[%clk 0:00:54]} 35. Qxd4 {[%clk 0:00:59]}  Rxf2+ {[%clk 0:00:53]} 36. Kg3 {[%clk 0:00:59]}  Qxf3+ {[%clk 0:00:51]} 37. Kh4 {[%clk 0:00:58]}  g5+ {[%clk 0:00:51]} 38. Kh5 {[%clk 0:00:58]}  Qxh3# {[%clk 0:00:52]} 0-1


[Site "https://www.chess.com"]

[Event "Titled Tuesday Blitz May 16 Early 2023"]
[White "Ibarra Jerez, Jose Carlos"]
[Black "vlajkovicS"]
[WhiteFideId "2226332"]
[WhiteElo "2638"]
[BlackElo "2605"]
[Result "1-0"]
[Round "02"]
[TimeControl "180+2"]
[Date "2023.05.16"]
[WhiteClock "0:00:22"]
[BlackClock "0:00:19"]

1. e4 {[%clk 0:03:00]}  e6 {[%clk 0:02:59]} 2. d4 {[%clk 0:03:00]}  a6 {[%clk 0:03:00]} 3. f4 {[%clk 0:02:57]}  b5 {[%clk 0:03:00]} 4. Nf3 {[%clk 0:02:57]}  Bb7 {[%clk 0:03:01]} 5. Bd3 {[%clk 0:02:57]}  c5 {[%clk 0:03:01]} 6. c3 {[%clk 0:02:56]}  Nf6 {[%clk 0:03:01]} 7. Qe2 {[%clk 0:02:56]}  Be7 {[%clk 0:03:01]} 8. e5 {[%clk 0:02:55]}  Nd5 {[%clk 0:03:01]} 9. O-O {[%clk 0:02:54]}  Nc6 {[%clk 0:03:01]} 10. a3 {[%clk 0:02:53]}  Qb6 {[%clk 0:03:00]} 11. dxc5 {[%clk 0:02:28]}  Bxc5+ {[%clk 0:03:01]} 12. Kh1 {[%clk 0:02:28]}  Be3 {[%clk 0:03:01]} 13. Bxe3 {[%clk 0:02:20]}  Qxe3 {[%clk 0:03:02]} 14. Qxe3 {[%clk 0:02:14]}  Nxe3 {[%clk 0:03:03]} 15. Rf2 {[%clk 0:02:12]}  Nd5 {[%clk 0:03:01]} 16. g3 {[%clk 0:02:11]}  Rd8 {[%clk 0:02:54]} 17. Nbd2 {[%clk 0:02:10]}  d6 {[%clk 0:02:33]} 18. exd6 {[%clk 0:02:09]}  Rxd6 {[%clk 0:02:34]} 19. Ne4 {[%clk 0:02:09]}  Rd8 {[%clk 0:02:34]} 20. Nc5 {[%clk 0:02:09]}  Bc8 {[%clk 0:02:35]} 21. a4 {[%clk 0:01:47]}  b4 {[%clk 0:02:10]} 22. Bxa6 {[%clk 0:01:47]}  bxc3 {[%clk 0:02:09]} 23. Bb5 {[%clk 0:01:43]}  Ne7 {[%clk 0:01:44]} 24. Ne5 {[%clk 0:01:32]}  cxb2 {[%clk 0:01:36]} 25. Rxb2 {[%clk 0:01:31]}  Rd6 {[%clk 0:01:36]} 26. Nxc6 {[%clk 0:01:13]}  Nxc6 {[%clk 0:01:27]} 27. Ne4 {[%clk 0:01:13]}  Rd4 {[%clk 0:01:11]} 28. Bxc6+ {[%clk 0:01:13]}  Ke7 {[%clk 0:01:11]} 29. Rc1 {[%clk 0:01:06]}  Rhd8 {[%clk 0:01:04]} 30. Kg1 {[%clk 0:01:05]}  Ba6 {[%clk 0:01:00]} 31. Nc5 {[%clk 0:00:56]}  Bc4 {[%clk 0:00:45]} 32. Nb3 {[%clk 0:00:24]}  Rd1+ {[%clk 0:00:42]} 33. Rxd1 {[%clk 0:00:25]}  Rxd1+ {[%clk 0:00:43]} 34. Kf2 {[%clk 0:00:25]}  Rd3 {[%clk 0:00:20]} 35. Nd2 {[%clk 0:00:21]}  Ba6 {[%clk 0:00:18]} 36. Bb5 {[%clk 0:00:21]}  Bxb5 {[%clk 0:00:17]} 37. axb5 {[%clk 0:00:22]}  Rd7 {[%clk 0:00:18]} 38. b6 {[%clk 0:00:22]}  Rb7 {[%clk 0:00:18]} 39. Nc4 {[%clk 0:00:22]}  Kd7 {[%clk 0:00:19]} 40. Na5 {[%clk 0:00:22]}  Rb8 {[%clk 0:00:19]} 41. b7 {[%clk 0:00:22]}  f5 {[%clk 0:00:19]} 42. Rc2 {[%clk 0:00:22]} 1-0


[Site "https://www.chess.com"]

[Event "Titled Tuesday Blitz May 16 Early 2023"]
[White "Wadsworth, Matthew J"]
[Black "Swiercz, Dariusz"]
[WhiteFideId "415804"]
[BlackFideId "1126881"]
[WhiteElo "2347"]
[BlackElo "2620"]
[Result "1/2-1/2"]
[Round "02"]
[TimeControl "180+2"]
[Date "2023.05.16"]
[WhiteClock "0:00:09"]
[BlackClock "0:00:10"]

1. c4 {[%clk 0:03:00]}  Nf6 {[%clk 0:02:44]} 2. g3 {[%clk 0:03:00]}  g6 {[%clk 0:02:44]} 3. Bg2 {[%clk 0:03:00]}  Bg7 {[%clk 0:02:45]} 4. Nf3 {[%clk 0:03:00]}  O-O {[%clk 0:02:46]} 5. O-O {[%clk 0:03:00]}  c6 {[%clk 0:02:47]} 6. d4 {[%clk 0:02:57]}  d6 {[%clk 0:02:47]} 7. Nc3 {[%clk 0:02:56]}  Bf5 {[%clk 0:02:48]} 8. Ne1 {[%clk 0:02:54]}  e5 {[%clk 0:02:47]} 9. d5 {[%clk 0:02:54]}  cxd5 {[%clk 0:02:44]} 10. cxd5 {[%clk 0:02:54]}  a5 {[%clk 0:02:45]} 11. e4 {[%clk 0:02:51]}  Bg4 {[%clk 0:02:45]} 12. Qb3 {[%clk 0:02:35]}  Na6 {[%clk 0:02:43]} 13. Be3 {[%clk 0:02:33]}  Nd7 {[%clk 0:01:59]} 14. Nd3 {[%clk 0:02:27]}  Ndc5 {[%clk 0:01:38]} 15. Nxc5 {[%clk 0:02:24]}  Nxc5 {[%clk 0:01:39]} 16. Bxc5 {[%clk 0:02:19]}  dxc5 {[%clk 0:01:40]} 17. f3 {[%clk 0:02:08]}  Bd7 {[%clk 0:01:37]} 18. a4 {[%clk 0:02:07]}  Qc7 {[%clk 0:01:31]} 19. Rfd1 {[%clk 0:02:06]}  Ra6 {[%clk 0:01:29]} 20. Bf1 {[%clk 0:02:03]}  Rf6 {[%clk 0:01:22]} 21. Nb5 {[%clk 0:01:59]}  Bxb5 {[%clk 0:01:21]} 22. Bxb5 {[%clk 0:01:54]}  Bh6 {[%clk 0:01:18]} 23. Kg2 {[%clk 0:01:51]}  Rd6 {[%clk 0:01:17]} 24. Qd3 {[%clk 0:01:43]}  b6 {[%clk 0:01:12]} 25. b3 {[%clk 0:01:40]}  Rfd8 {[%clk 0:00:57]} 26. h4 {[%clk 0:01:37]}  Bf8 {[%clk 0:00:51]} 27. h5 {[%clk 0:01:27]}  gxh5 {[%clk 0:00:51]} 28. Rh1 {[%clk 0:01:27]}  Rh6 {[%clk 0:00:51]} 29. Rh4 {[%clk 0:01:19]}  Be7 {[%clk 0:00:51]} 30. Rh3 {[%clk 0:01:08]}  Kh8 {[%clk 0:00:46]} 31. Rah1 {[%clk 0:01:08]}  h4 {[%clk 0:00:46]} 32. Qe3 {[%clk 0:00:59]}  Qd6 {[%clk 0:00:45]} 33. gxh4 {[%clk 0:00:53]}  Rg8+ {[%clk 0:00:44]} 34. Kf2 {[%clk 0:00:47]}  Qg6 {[%clk 0:00:36]} 35. h5 {[%clk 0:00:44]}  Qg2+ {[%clk 0:00:32]} 36. Ke1 {[%clk 0:00:44]}  c4 {[%clk 0:00:13]} 37. Bxc4 {[%clk 0:00:16]}  Bg5 {[%clk 0:00:06]} 38. Qe2 {[%clk 0:00:16]}  Qxe2+ {[%clk 0:00:04]} 39. Bxe2 {[%clk 0:00:16]}  Rd6 {[%clk 0:00:03]} 40. Rg3 {[%clk 0:00:09]}  h6 {[%clk 0:00:04]} 41. Rg4 {[%clk 0:00:08]}  Rc8 {[%clk 0:00:04]} 42. Bc4 {[%clk 0:00:08]}  Kg7 {[%clk 0:00:04]} 43. Rhg1 {[%clk 0:00:08]}  Kf6 {[%clk 0:00:05]} 44. Ke2 {[%clk 0:00:08]}  Rd7 {[%clk 0:00:05]} 45. Kd3 {[%clk 0:00:08]}  Rd6 {[%clk 0:00:06]} 46. R4g2 {[%clk 0:00:08]}  Rdd8 {[%clk 0:00:06]} 47. Rc2 {[%clk 0:00:08]}  Rc7 {[%clk 0:00:06]} 48. Rc3 {[%clk 0:00:07]}  Rdc8 {[%clk 0:00:05]} 49. Rg2 {[%clk 0:00:07]}  Ke7 {[%clk 0:00:05]} 50. Rgc2 {[%clk 0:00:07]}  Kd6 {[%clk 0:00:06]} 51. Ba6 {[%clk 0:00:07]}  Rxc3+ {[%clk 0:00:06]} 52. Rxc3 {[%clk 0:00:08]}  Rxc3+ {[%clk 0:00:07]} 53. Kxc3 {[%clk 0:00:09]}  Kc5 {[%clk 0:00:08]} 54. Bc8 {[%clk 0:00:09]}  f6 {[%clk 0:00:08]} 55. Be6 {[%clk 0:00:08]}  Be3 {[%clk 0:00:08]} 56. Kd3 {[%clk 0:00:08]}  Bf4 {[%clk 0:00:08]} 57. Bf7 {[%clk 0:00:07]}  Bg3 {[%clk 0:00:08]} 58. Be6 {[%clk 0:00:08]}  Bf2 {[%clk 0:00:08]} 59. Bd7 {[%clk 0:00:08]}  Bd4 {[%clk 0:00:08]} 60. Bb5 {[%clk 0:00:08]}  Bb2 {[%clk 0:00:08]} 61. Ke2 {[%clk 0:00:08]}  Ba3 {[%clk 0:00:08]} 62. Kf2 {[%clk 0:00:08]}  Bc1 {[%clk 0:00:01]} 63. Kg3 {[%clk 0:00:09]}  Kd6 {[%clk 0:00:01]} 64. Kg4 {[%clk 0:00:09]}  Bg5 {[%clk 0:00:02]} 65. Kf5 {[%clk 0:00:09]}  Ke7 {[%clk 0:00:02]} 66. Kg6 {[%clk 0:00:09]}  Bf4 {[%clk 0:00:02]} 67. Bc4 {[%clk 0:00:10]}  Bg5 {[%clk 0:00:03]} 68. Kg7 {[%clk 0:00:10]}  Bf4 {[%clk 0:00:04]} 69. Kg6 {[%clk 0:00:09]}  Bg5 {[%clk 0:00:04]} 70. Kf5 {[%clk 0:00:08]}  Bf4 {[%clk 0:00:05]} 71. d6+ {[%clk 0:00:07]}  Kxd6 {[%clk 0:00:05]} 72. Kxf6 {[%clk 0:00:08]}  Be3 {[%clk 0:00:06]} 73. Bd5 {[%clk 0:00:08]}  Bf4 {[%clk 0:00:06]} 74. Kf7 {[%clk 0:00:09]}  Bg5 {[%clk 0:00:06]} 75. Ke8 {[%clk 0:00:09]}  Bh4 {[%clk 0:00:07]} 76. Bc4 {[%clk 0:00:08]}  Bg5 {[%clk 0:00:07]} 77. Kf7 {[%clk 0:00:08]}  Bh4 {[%clk 0:00:08]} 78. Ke8 {[%clk 0:00:08]}  Bg5 {[%clk 0:00:08]} 79. Kf7 {[%clk 0:00:08]}  Bh4 {[%clk 0:00:09]} 80. Kg6 {[%clk 0:00:09]}  Bg5 {[%clk 0:00:09]} 81. Kf5 {[%clk 0:00:09]}  Bf4 {[%clk 0:00:10]} 82. Kf6 {[%clk 0:00:09]}  Bg5+ {[%clk 0:00:10]} 83. Kf7 {[%clk 0:00:09]} 1/2-1/2


[Site "https://www.chess.com"]

[Event "Titled Tuesday Blitz May 16 Early 2023"]
[White "Mitrabha, Guha"]
[Black "Munkhgal, Gombosuren"]
[WhiteFideId "5057000"]
[BlackFideId "4901266"]
[WhiteElo "2507"]
[BlackElo "2528"]
[Result "1-0"]
[Round "02"]
[TimeControl "180+2"]
[Date "2023.05.16"]
[WhiteClock "0:00:07"]
[BlackClock "0:00:00"]

1. d4 {[%clk 0:02:44]}  Nf6 {[%clk 0:02:59]} 2. Bg5 {[%clk 0:02:43]}  Ne4 {[%clk 0:02:57]} 3. Bf4 {[%clk 0:02:43]}  d5 {[%clk 0:02:57]} 4. e3 {[%clk 0:02:42]}  c5 {[%clk 0:02:51]} 5. c3 {[%clk 0:02:38]}  Nc6 {[%clk 0:02:50]} 6. Bd3 {[%clk 0:02:38]}  Qb6 {[%clk 0:02:48]} 7. Qb3 {[%clk 0:02:31]}  Nf6 {[%clk 0:02:38]} 8. Nd2 {[%clk 0:02:16]}  c4 {[%clk 0:02:36]} 9. Qxb6 {[%clk 0:02:15]}  axb6 {[%clk 0:02:36]} 10. Bc2 {[%clk 0:02:16]}  b5 {[%clk 0:02:35]} 11. e4 {[%clk 0:02:16]}  e6 {[%clk 0:02:33]} 12. Ngf3 {[%clk 0:02:10]}  b4 {[%clk 0:02:33]} 13. Ke2 {[%clk 0:02:07]}  b5 {[%clk 0:02:30]} 14. Nf1 {[%clk 0:01:48]}  bxc3 {[%clk 0:02:22]} 15. bxc3 {[%clk 0:01:46]}  b4 {[%clk 0:02:22]} 16. Ne3 {[%clk 0:01:42]}  bxc3 {[%clk 0:02:18]} 17. exd5 {[%clk 0:01:38]}  exd5 {[%clk 0:02:18]} 18. Bg5 {[%clk 0:01:34]}  Be6 {[%clk 0:02:11]} 19. Rhb1 {[%clk 0:01:17]}  Ba3 {[%clk 0:02:05]} 20. Rb5 {[%clk 0:01:14]}  Bb2 {[%clk 0:02:03]} 21. Rd1 {[%clk 0:01:13]}  O-O {[%clk 0:01:44]} 22. Ne5 {[%clk 0:00:52]}  Ra5 {[%clk 0:01:16]} 23. Rb6 {[%clk 0:00:41]}  Nxe5 {[%clk 0:01:15]} 24. dxe5 {[%clk 0:00:41]}  Nd7 {[%clk 0:01:16]} 25. Rd6 {[%clk 0:00:40]}  Nxe5 {[%clk 0:01:13]} 26. Nxd5 {[%clk 0:00:39]}  Nd3 {[%clk 0:01:09]} 27. Ne7+ {[%clk 0:00:31]}  Kh8 {[%clk 0:01:08]} 28. Be3 {[%clk 0:00:31]}  Ba3 {[%clk 0:00:52]} 29. Rxe6 {[%clk 0:00:27]}  fxe6 {[%clk 0:00:52]} 30. Nc6 {[%clk 0:00:27]}  Ra6 {[%clk 0:00:46]} 31. Nd4 {[%clk 0:00:25]}  e5 {[%clk 0:00:41]} 32. Nb5 {[%clk 0:00:25]}  e4 {[%clk 0:00:39]} 33. Nxc3 {[%clk 0:00:25]}  Re8 {[%clk 0:00:36]} 34. Rb1 {[%clk 0:00:23]}  Bb2 {[%clk 0:00:35]} 35. Nb5 {[%clk 0:00:17]}  Rxa2 {[%clk 0:00:35]} 36. Nd6 {[%clk 0:00:18]}  Rea8 {[%clk 0:00:29]} 37. Nxc4 {[%clk 0:00:18]}  Bc3 {[%clk 0:00:30]} 38. Kd1 {[%clk 0:00:17]}  Ra1 {[%clk 0:00:23]} 39. Nd6 {[%clk 0:00:18]}  Rxb1+ {[%clk 0:00:23]} 40. Bxb1 {[%clk 0:00:19]}  Nb4 {[%clk 0:00:13]} 41. Bxe4 {[%clk 0:00:17]}  Ra1+ {[%clk 0:00:12]} 42. Ke2 {[%clk 0:00:17]}  h6 {[%clk 0:00:10]} 43. h4 {[%clk 0:00:15]}  Ra2+ {[%clk 0:00:09]} 44. Kf3 {[%clk 0:00:15]}  Ra6 {[%clk 0:00:10]} 45. Bc5 {[%clk 0:00:15]}  Ra5 {[%clk 0:00:06]} 46. Nb7 {[%clk 0:00:14]}  Ra3 {[%clk 0:00:05]} 47. Kg4 {[%clk 0:00:13]}  Rb3 {[%clk 0:00:03]} 48. Na5 {[%clk 0:00:13]}  Rb2 {[%clk 0:00:03]} 49. Nc4 {[%clk 0:00:13]}  Rb3 {[%clk 0:00:03]} 50. Nd6 {[%clk 0:00:13]}  Rb2 {[%clk 0:00:01]} 51. h5 {[%clk 0:00:10]}  Bf6 {[%clk 0:00:01]} 52. Kf5 {[%clk 0:00:08]}  Nc2 {[%clk 0:00:00]} 53. Ke6 {[%clk 0:00:07]}  Nd4+ {[%clk 0:00:00]} 54. Kf7 {[%clk 0:00:07]} 1-0


[Site "https://www.chess.com"]